fUST/lending_fUST_20251027
["ID","MTS","AMOUNT","RATE_DAILY","PERIOD"]
[392481381,1761547963838,-300.0,0.00016207,2]
[392481382,1761547963861,-300.0,0.00016207,2]
[392481383,1761547963888,-300.0,0.00016207,2]
[392481384,1761547963914,-300.0,0.00016207,2]
[392481385,1761547963941,-300.0,0.00016207,2]
[392481386,1761547963966,-300.0,0.00016207,2]
[392481387,1761547964123,-300.0,0.00016207,2]
[392481388,1761547964147,-300.0,0.00016207,2]
[392481389,1761547964171,-300.0,0.00016207,2]
[392481390,1761547964195,-300.0,0.00016207,2]
[392481391,1761547964217,-300.0,0.00016207,2]
[392481392,1761547964241,-300.0,0.00016207,2]
[392481393,1761547964263,-300.0,0.00016207,2]
[392481394,1761547964285,-300.0,0.00016207,2]
[392481395,1761547964307,-300.0,0.00016207,2]
[392481396,1761547964326,-151.0,0.00016438,2]
[392481397,1761547964347,-151.0,0.00016438,2]
[392481398,1761547964367,-151.0,0.00016438,2]
[392481399,1761547964390,-196.0,0.00016469,2]
[392481400,1761547964411,-196.0,0.00016741,2]
[392481401,1761547964430,-632.0,0.00016792,2]
[392481402,1761547964450,-984.0,0.00016792,2]
[392481403,1761547964470,-2166.0,0.00016792,2]
[392481404,1761547964494,-150.308,0.00016792,2]
[392481405,1761547964514,-151.0,0.00016792,2]
[392481406,1761547964534,-412.0,0.00016792,2]
[392481407,1761547964554,-255.49,0.00016792,2]
[392481408,1761547964575,-151.0,0.00016792,2]
[392481409,1761547964598,-970.8381259,0.000168,2]
[392481410,1761547964621,-1376.91,0.00016887,2]
[392481411,1761547964644,-500.0,0.00016944,2]
[392481412,1761547964665,-151.0,0.00016944,2]
[392481413,1761547964686,-151.0,0.00016944,2]
[392481414,1761547964707,-500.0,0.00016944,2]
[392481415,1761547964729,-500.0,0.00016944,2]
[392481416,1761547964749,-500.0,0.00016944,2]
[392481417,1761547964769,-207.93154502,0.00016963,2]
[392481418,1761547964789,-500.0,0.00016999,2]
[392481419,1761547964808,-151.0,0.00016999,2]
[392481420,1761547964829,-500.0,0.00016999,2]
[392481421,1761547964848,-500.0,0.00016999,2]
[392481422,1761547964869,-507.00000003,0.00016999,2]
[392481423,1761547964888,-2280.0,0.00017,2]
[392481425,1761547993621,-196.0,0.00017013,2]
[392481426,1761547993646,-500.0,0.00017054,2]
[392481427,1761547993666,-151.0,0.00017054,2]
[392481428,1761547993686,-500.0,0.00017054,2]
[392481429,1761547993706,-500.0,0.00017054,2]
[392481430,1761547993726,-300.0,0.00017107,2]
[392481431,1761547993748,-500.0,0.00017108,2]
[392481432,1761547993768,-151.0,0.00017108,2]
[392481433,1761547993788,-500.0,0.00017108,2]
[392481434,1761547993810,-500.0,0.00017108,2]
[392481435,1761547993830,-336.37,0.00017149,2]
[392481436,1761547993850,-151.0,0.00017149,2]
[392481437,1761547993870,-2672.9,0.0001715,3]
[392481438,1761547993890,-1474.7,0.0001715,3]
[392481439,1761547993911,-737.36,0.0001715,3]
[392481440,1761547993931,-368.68,0.0001715,3]
[392481441,1761547993951,-245.0,0.00017163,2]
[392481442,1761547993972,-725.51058194,0.0001718,2]
[392481443,1761547993992,-3574.26410852,0.0001718,2]
[392481444,1761547994014,-196.0,0.00017285,2]
[392481445,1761547994038,-1376.91,0.00017301,2]
[392481446,1761547994059,-1639.0,0.00017353,2]
[392481447,1761547994079,-489.70273553,0.00017513,2]
[392481448,1761547994098,-500.0,0.00017513,2]
[392481449,1761547994117,-501.94085089,0.00017513,2]
[392481450,1761547994138,-500.0,0.00017513,2]
[392481451,1761547994158,-500.0,0.00017513,2]
[392481452,1761547994178,-500.0,0.00017513,2]
[392481453,1761547994198,-500.0,0.00017513,2]
[392481454,1761547994218,-500.0,0.00017513,2]
[392481455,1761547994237,-500.0,0.00017513,2]
[392481456,1761547994257,-230.97413901,0.00017513,2]
[392481459,1761548155908,695.229312,0.00013699,2]
[392481460,1761548182430,10000.0,0.00030137,120]
[392481465,1761548202271,503.79,0.00030137,120]
[392481468,1761548302090,160.0,0.000301,120]
[392481469,1761548303947,160.0,0.000301,120]
[392481470,1761548331377,345.9585188,0.00014739,2]
[392481471,1761548382580,3083.91744647,0.00029998,120]
[392481473,1761548410946,22977.05136058,0.00029998,120]
[392481488,1761548709138,186.680487,0.00015068,2]
[392481543,1761549032664,-196.0,0.0001511,2]
[392481545,1761549032674,-739.95,0.00015149,2]
[392481559,1761549032796,-460.05,0.00015149,2]
[392481560,1761549032805,-5318.03277635,0.0001515,2]
[392481785,1761549044927,-3221.92116775,0.0001515,2]
[392481786,1761549044938,-300.0,0.00015583,2]
[392481787,1761549044950,-300.0,0.00015583,2]
[392481788,1761549044959,-300.0,0.00015583,2]
[392481789,1761549044969,-387.61803411,0.00015585,2]
[392481790,1761549044978,-1157.21970945,0.00015589,2]
[392481791,1761549044990,-250.0,0.0001566,2]
[392481792,1761549044999,-190.97263677,0.00015672,2]
[392481793,1761549045009,-183.45703613,0.00015672,2]
[392481794,1761549045018,-288.59252621,0.00015672,2]
[392481795,1761549045027,-4384.26051148,0.00015672,2]
[392481796,1761549045036,-3589.64120806,0.00015672,2]
[392481797,1761549045045,-500.0,0.00015673,2]
[392481798,1761549045055,-219.45590485,0.00015673,2]
[392481799,1761549045064,-183.72876927,0.00015673,2]
[392481800,1761549045074,-500.0,0.00015673,2]
[392481801,1761549045086,-325.8387244,0.00015673,2]
[392481802,1761549045217,-500.0,0.00015673,2]
[392481803,1761549045227,-500.0,0.00015673,2]
[392481804,1761549045236,-500.0,0.00015673,2]
[392481805,1761549045246,-500.0,0.00015673,2]
[392481806,1761549045255,-500.0,0.00015673,2]
[392481807,1761549045265,-500.0,0.00015673,2]
[392481808,1761549045274,-9761.38231493,0.00015673,2]
[392481809,1761549045295,-35598.42754,0.00015673,2]
[392481857,1761549046748,-4640.19014507,0.00015673,2]
[392481858,1761549046758,-745.83,0.00015689,2]
[392481859,1761549046768,-745.83,0.00015689,2]
[392481860,1761549046778,-745.83,0.00015689,2]
[392481861,1761549046787,-745.83,0.00015689,2]
[392481862,1761549046797,-745.83,0.00015689,2]
[392481863,1761549046807,-745.83,0.00015689,2]
[392481864,1761549046816,-745.83,0.00015689,2]
[392481865,1761549046828,-745.83,0.00015689,2]
[392481866,1761549046837,-745.83,0.00015689,2]
[392481867,1761549046847,-745.83,0.00015689,2]
[392481868,1761549046856,-745.83,0.00015689,2]
[392481869,1761549046865,-745.83,0.00015689,2]
[392481870,1761549046876,-745.83,0.00015689,2]
[392481871,1761549046885,-745.83,0.00015689,2]
[392481872,1761549046895,-745.83,0.00015689,2]
[392481873,1761549046904,-745.83,0.00015689,2]
[392481874,1761549046914,-745.83,0.00015689,2]
[392481875,1761549046924,-745.83,0.00015689,2]
[392481876,1761549046933,-745.83,0.00015689,2]
[392481877,1761549046943,-745.83,0.00015689,2]
[392481878,1761549046953,-745.83,0.00015689,2]
[392481879,1761549046963,-745.83,0.00015689,2]
[392481880,1761549046973,-745.83,0.00015689,2]
[392481881,1761549046983,-745.96836085,0.00015689,2]
[392481882,1761549046992,-74787.03266443,0.0001569,2]
[392481883,1761549047004,-3445.19999985,0.0001569,2]
[392481884,1761549057830,380.53,0.0001568,3]
[392481885,1761549068718,190.26,0.0001568,3]
[392481886,1761549079294,570.82,0.0001568,3]
[392481887,1761549104834,178.376664,0.00014754,2]
[392481892,1761549255828,1013.61681,0.00030137,120]
[392481893,1761549651196,190.26,0.0001558,3]
[392481894,1761549662114,570.8,0.0001558,3]
[392482024,1761550231916,-196.0,0.0001511,2]
[392482026,1761550231925,-796.49258485,0.00015572,2]
[392482028,1761550231935,-1678.46771583,0.00015572,2]
[392482029,1761550231944,-2035.42208159,0.00015573,2]
[392482031,1761550231954,-1200.0,0.00015587,2]
[392482033,1761550231963,-300.0,0.00015588,2]
[392482034,1761550231973,-392.21375735,0.00015589,2]
[392482036,1761550231982,-500.0,0.00015589,2]
[392482038,1761550231992,-500.0,0.00015589,2]
[392482040,1761550232001,-500.0,0.00015589,2]
[392482042,1761550232010,-500.0,0.00015589,2]
[392482043,1761550232019,-500.0,0.00015589,2]
[392482045,1761550232028,-500.0,0.00015589,2]
[392482047,1761550232038,-500.0,0.00015589,2]
[392482049,1761550232047,-500.0,0.00015589,2]
[392482051,1761550232058,-500.0,0.00015589,2]
[392482052,1761550232067,-500.0,0.00015589,2]
[392482054,1761550232078,-500.0,0.00015589,2]
[392482056,1761550232087,-500.0,0.00015589,2]
[392482058,1761550232096,-500.0,0.00015589,2]
[392482060,1761550232106,-351.10751459,0.00015589,2]
[392482062,1761550232115,-208.79347896,0.00015589,2]
[392482063,1761550232124,-310.1924981,0.00015589,2]
[392482065,1761550232133,-500.0,0.00015589,2]
[392482067,1761550232143,-500.0,0.00015589,2]
[392482069,1761550232152,-500.0,0.00015589,2]
[392482071,1761550232161,-500.0,0.00015589,2]
[392482072,1761550232171,-184.513559,0.00015589,2]
[392482075,1761550232183,-137.4493931,0.00015589,2]
[392482076,1761550232192,-452.50169175,0.00015589,2]
[392482078,1761550232201,-500.0,0.00015589,2]
[392482081,1761550232210,-500.0,0.00015589,2]
[392482083,1761550232219,-509.25407418,0.00015589,2]
[392482084,1761550232229,-183.89494938,0.00015589,2]
[392482086,1761550232239,-500.0,0.00015589,2]
[392482088,1761550232248,-1883.8490489,0.0001559,2]
[392482095,1761550232316,-476.52,0.0001559,2]
[392482242,1761550242938,-711.48248578,0.0001559,2]
[392482244,1761550242982,-7345.10042117,0.0001559,2]
[392482246,1761550242993,-385.53607244,0.0001559,2]
[392482247,1761550243004,-300.0,0.0001559,2]
[392482248,1761550243016,-1451.34124112,0.0001559,2]
[392482249,1761550243118,-294.98067885,0.0001559,2]
[392482254,1761550244246,380.52,0.0001558,3]
[392482261,1761550246011,-12039.72304846,0.0001559,2]
[392482268,1761550297664,166.898526,0.00030137,120]
[392482362,1761550665026,5000.0,0.0001825,9]
[392482364,1761551120969,2035.42208159,0.0001509,2]
[392482370,1761551248102,660.467846,0.00013699,2]
[392482474,1761551432122,-335.06986461,0.0001511,2]
[392482475,1761551432132,-37.10522461,0.00015472,2]
[392482476,1761551432144,-600.08884327,0.00015472,2]
[392482477,1761551432153,-300.0,0.00015489,2]
[392482478,1761551432163,-1200.0,0.00015489,2]
[392482479,1761551432172,-217.13474867,0.00015489,2]
[392482480,1761551432182,-500.0,0.00015489,2]
[392482481,1761551432192,-288.22868821,0.00015489,2]
[392482482,1761551432201,-17.85588385,0.0001549,2]
[392482543,1761551440268,-369.85360062,0.0001549,2]
[392482565,1761551443783,-1117.0,0.0001549,2]
[392482601,1761551446265,-2313.8,0.0001549,2]
[392482602,1761551446278,-1156.95,0.0001549,2]
[392482603,1761551446290,-3462.50000165,0.0001549,2]
[392482609,1761551891522,10000.0,0.0003013,120]
[392482610,1761551900093,10000.0,0.0003013,120]
[392482611,1761551908826,10000.0,0.0003013,120]
[392482612,1761551918032,10000.0,0.0003013,120]
[392482613,1761551926008,10000.0,0.0003013,120]
[392482627,1761552493634,419.02349543,0.00014665,2]
[392482628,1761552495760,1674.41788774,0.00014665,2]
[392482650,1761552604209,219.42,0.0001538,3]
[392482651,1761552615053,294.14,0.0001538,3]
[392482652,1761552625942,882.43,0.0001538,3]
[392482675,1761552632372,-196.0,0.0001511,2]
[392482677,1761552632382,-2035.42208159,0.00015132,2]
[392482679,1761552632391,-501.84138865,0.000152,2]
[392482681,1761552632401,-1717.9488604,0.00015287,2]
[392482683,1761552632410,-509.75525432,0.00015337,2]
[392482685,1761552632419,-300.0,0.00015372,2]
[392482687,1761552632428,-300.0,0.00015372,2]
[392482689,1761552632438,-1200.0,0.00015372,2]
[392482691,1761552632447,-300.0,0.00015372,2]
[392482692,1761552632456,-500.0,0.00015373,2]
[392482694,1761552632465,-500.0,0.00015373,2]
[392482696,1761552632475,-500.0,0.00015373,2]
[392482698,1761552632485,-500.0,0.00015373,2]
[392482700,1761552632494,-500.0,0.00015373,2]
[392482702,1761552632504,-500.0,0.00015373,2]
[392482704,1761552632514,-183.72876927,0.00015373,2]
[392482706,1761552632523,-500.0,0.00015373,2]
[392482708,1761552632532,-325.8387244,0.00015373,2]
[392482710,1761552632542,-500.0,0.00015373,2]
[392482712,1761552632551,-500.0,0.00015373,2]
[392482714,1761552632560,-220.49656303,0.00015373,2]
[392482716,1761552632569,-500.0,0.00015373,2]
[392482718,1761552632579,-1200.0,0.00015386,2]
[392482720,1761552632588,-415.89223758,0.00015386,2]
[392482722,1761552632597,-50000.0,0.00015386,2]
[392482724,1761552632607,-171.54365532,0.00015387,2]
[392482726,1761552632616,-500.0,0.00015387,2]
[392482728,1761552632625,-500.0,0.00015387,2]
[392482730,1761552632635,-178.12788558,0.00015387,2]
[392482732,1761552632644,-518.1944225,0.00015387,2]
[392482733,1761552632653,-546.91431698,0.00015387,2]
[392482735,1761552632662,-452.86594999,0.00015387,2]
[392482737,1761552632671,-500.0,0.00015387,2]
[392482739,1761552632681,-500.0,0.00015387,2]
[392482741,1761552632690,-388.15839267,0.00015387,2]
[392482743,1761552632699,-288.59252621,0.00015387,2]
[392482745,1761552632708,-151.0,0.0001539,2]
[392482747,1761552632717,-151.0,0.0001539,2]
[392482749,1761552632726,-162746.7863998,0.0001539,2]
[392482751,1761552632737,-654.85,0.0001539,2]
[392482753,1761552632748,-1278.9946055,0.0001539,2]
[392482757,1761552632775,-207.03143491,0.00015385,2]
[392482759,1761552632786,-4000.24401636,0.0001539,2]
[392482761,1761552632797,-11556.0,0.0001539,2]
[392482874,1761552638412,-203.44722631,0.00015385,2]
[392482875,1761552638422,-296.55277369,0.0001539,2]
[392482876,1761552638434,-286.0,0.0001539,2]
[392482931,1761552643555,-209.79537696,0.00015385,2]
[392482933,1761552643564,-4255.80462304,0.0001539,2]
[392483160,1761552646356,-1155.4,0.0001539,2]
[392483161,1761552656746,171.18,0.0001538,3]
[392483162,1761552667348,513.58,0.0001538,3]
[392483165,1761552727857,266.611131,0.00014905,2]
[392483167,1761553003618,150.53620356,0.00015347,7]
[392483168,1761553032714,314.0,0.00030136,120]
[392483169,1761553047318,3020.9,0.000181,10]
[392483171,1761553270246,342.36,0.0001538,3]
[392483252,1761553712324,329.91655481,0.00015,2]
[392483259,1761553717992,200.0,0.0003,120]
[392483263,1761553737627,200.0,0.0003,120]
[392483306,1761553832444,-460.49673598,0.00015134,2]
[392483307,1761553832555,-613.5,0.00015134,2]
[392483333,1761553832860,-927.9216474,0.00015134,2]
[392483386,1761553838518,-33.50369821,0.00015134,2]
[392483387,1761553838528,-1584.91184569,0.00015285,2]
[392483388,1761553838538,-804.81163221,0.00015285,2]
[392483389,1761553838547,-1200.0,0.00015288,2]
[392483390,1761553838557,-300.0,0.00015289,2]
[392483391,1761553838567,-256.77282389,0.0001529,2]
[392483402,1761553842151,-0.02779493,0.0001529,2]
[392483407,1761553843806,-8320.00000003,0.0001529,2]
[392483408,1761553843818,-1155.4,0.0001529,2]
[392483409,1761553843829,-433.24403544,0.0001529,2]
[392483443,1761553846646,-2309.2,0.0001529,2]
[392483444,1761553846706,-9045.53911206,0.0001529,2]
[392483445,1761553846717,-1154.5,0.0001529,2]
[392483472,1761553963795,627.444453,0.00013699,2]
[392483513,1761554079793,596.84619166,0.00014985,2]
[392483535,1761554386949,3226.0,0.00030137,120]
[392483536,1761554459632,3221.9211678,0.00014289,2]
[392483546,1761554526325,2035.42208159,0.00014907,2]
[392483556,1761554548805,355.6293997,0.00030136,120]
[392483673,1761554851491,2638.28558584,0.0001825,9]
[392483696,1761555032899,-1386.79786497,0.00015173,2]
[392483697,1761555032908,-643.84930576,0.0001518,2]
[392483698,1761555032917,-300.0,0.00015189,2]
[392483699,1761555032926,-300.0,0.00015189,2]
[392483700,1761555032935,-300.0,0.00015189,2]
[392483701,1761555032945,-300.0,0.00015189,2]
[392483702,1761555032954,-1200.0,0.00015189,2]
[392483703,1761555032964,-300.0,0.00015189,2]
[392483704,1761555032973,-246.52245179,0.00015189,2]
[392483705,1761555032983,-500.0,0.00015189,2]
[392483706,1761555032992,-185.43267682,0.00015189,2]
[392483707,1761555033002,-44337.39770066,0.0001519,2]
[392483708,1761555033013,-562.8742527,0.0001519,2]
[392483822,1761555042658,1156.80704558,0.00015038,2]
[392483906,1761555046755,-1149.7,0.0001519,2]
[392483907,1761555046904,2035.42208159,0.00014957,2]
[392483911,1761555221087,1213.44813184,0.0001509,2]
[392483912,1761555411773,1061.76711536,0.00015081,2]
[392483918,1761555471947,6694.698557,0.000143,2]
[392483921,1761555537527,2035.42208159,0.00014819,2]
[392483922,1761555570697,168.0,0.00015098,2]
[392483932,1761555651809,929.04622594,0.0001508,2]
[392483936,1761555741611,-300.0,0.00015104,2]
[392483937,1761555741633,-160.0,0.00015104,2]
[392483938,1761555741655,-168.0,0.00015105,2]
[392483939,1761555741675,-500.0,0.00015105,2]
[392483940,1761555741699,-500.0,0.00015105,2]
[392483941,1761555741719,-500.0,0.00015105,2]
[392483942,1761555741740,-500.0,0.00015105,2]
[392483943,1761555741763,-345.6693557,0.0001511,2]
[392483944,1761555741789,-168.0,0.00015118,2]
[392483945,1761555741812,-168.0,0.00015165,2]
[392483946,1761555741832,-21570.98346332,0.00015179,2]
[392483947,1761555741853,-1200.0,0.00015179,2]
[392483948,1761555741874,-1200.0,0.00015179,2]
[392483949,1761555741894,-176.59995578,0.00015179,2]
[392483950,1761555741918,-500.0,0.00015179,2]
[392483951,1761555741939,-500.0,0.00015179,2]
[392483952,1761555741961,-500.0,0.00015179,2]
[392483953,1761555741982,-500.0,0.00015179,2]
[392483954,1761555742006,-500.0,0.00015179,2]
[392483955,1761555742184,-243.82848598,0.00015179,2]
[392483956,1761555742214,-500.0,0.00015179,2]
[392483957,1761555742237,-500.0,0.00015179,2]
[392483958,1761555742260,-500.0,0.00015179,2]
[392483959,1761555742283,-500.0,0.00015179,2]
[392483960,1761555742304,-500.0,0.00015179,2]
[392483961,1761555742327,-500.0,0.00015179,2]
[392483962,1761555742350,-500.0,0.00015179,2]
[392483963,1761555742372,-500.0,0.00015179,2]
[392483964,1761555742396,-430.0,0.00015179,2]
[392483965,1761555742419,-334.4860965,0.00015179,2]
[392483966,1761555742440,-500.0,0.00015179,2]
[392483967,1761555742462,-173.01895508,0.00015179,2]
[392483968,1761555742483,-500.0,0.00015179,2]
[392483969,1761555742504,-522.50048953,0.0001518,2]
[392483970,1761555742525,-500.0,0.0001518,2]
[392483971,1761555742547,-207.03143491,0.0001518,2]
[392483972,1761555742570,-151.0,0.00015181,2]
[392483973,1761555742591,-500.0,0.00015181,2]
[392483974,1761555742612,-151.0,0.00015181,2]
[392483975,1761555742633,-379.24152619,0.00015181,2]
[392483976,1761555742654,-250.0,0.00015181,2]
[392483977,1761555742675,-250.0,0.00015181,2]
[392483978,1761555742702,-151.0,0.00015181,2]
[392483979,1761555742724,-6423.14858489,0.00015181,2]
[392483980,1761555742746,-154.4120634,0.00015181,2]
[392483981,1761555742768,-151.0,0.00015181,2]
[392483982,1761555742794,-151.0,0.00015181,2]
[392483983,1761555742818,-151.0,0.00015181,2]
[392483984,1761555742839,-151.0,0.00015181,2]
[392483985,1761555742863,-181.3710613,0.00015181,2]
[392483986,1761555742886,-151.0,0.00015181,2]
[392483987,1761555742908,-500.0,0.00015181,2]
[392483988,1761555742933,-151.0,0.00015181,2]
[392483989,1761555742956,-500.0,0.00015181,2]
[392483990,1761555742979,-151.0,0.00015181,2]
[392483991,1761555743001,-500.0,0.00015181,2]
[392483992,1761555743023,-151.0,0.00015181,2]
[392483993,1761555743045,-151.0,0.00015181,2]
[392483994,1761555743067,-191.87295522,0.00015181,2]
[392483995,1761555743091,-151.0,0.00015181,2]
[392483996,1761555743115,-151.0,0.00015181,2]
[392483997,1761555743139,-151.0,0.00015181,2]
[392483998,1761555743165,-151.0,0.00015181,2]
[392483999,1761555743194,-152.96043574,0.00015181,2]
[392484000,1761555743222,-151.0,0.00015181,2]
[392484001,1761555743249,-151.0,0.00015181,2]
[392484002,1761555743275,-151.0,0.00015181,2]
[392484003,1761555743301,-1000.0,0.00015181,2]
[392484004,1761555743328,-1000.0,0.00015181,2]
[392484005,1761555743355,-1000.0,0.00015181,2]
[392484006,1761555743379,-1000.0,0.00015181,2]
[392484007,1761555743403,-1000.0,0.00015181,2]
[392484008,1761555743429,-1000.0,0.00015181,2]
[392484009,1761555743454,-1000.0,0.00015181,2]
[392484010,1761555743477,-1000.0,0.00015181,2]
[392484011,1761555743501,-1000.0,0.00015181,2]
[392484012,1761555743525,-187.58760619,0.00015181,2]
[392484013,1761555743549,-500.0,0.00015188,2]
[392484014,1761555743575,-557.26,0.00015188,2]
[392484015,1761555743596,-1000.0,0.00015189,2]
[392484016,1761555743621,-1000.0,0.00015189,2]
[392484017,1761555743645,-1000.0,0.00015189,2]
[392484018,1761555743666,-1039.54581628,0.00015189,2]
[392484019,1761555743692,-500.0,0.00015189,2]
[392484020,1761555743715,-500.0,0.00015189,2]
[392484021,1761555743737,-151.0,0.00015189,2]
[392484022,1761555743760,-257.548855,0.00015189,2]
[392484023,1761555743786,-151.0,0.00015189,2]
[392484024,1761555743809,-151.0,0.00015189,2]
[392484025,1761555743833,-212.045207,0.00015189,2]
[392484026,1761555743856,-212.045207,0.00015189,2]
[392484027,1761555743880,-212.045207,0.00015189,2]
[392484028,1761555743902,-212.045207,0.00015189,2]
[392484029,1761555743929,-212.045207,0.00015189,2]
[392484030,1761555743953,-212.045207,0.00015189,2]
[392484031,1761555743976,-1602.71,0.00015189,2]
[392484032,1761555743999,-1602.71,0.00015189,2]
[392484033,1761555744023,-1602.71,0.00015189,2]
[392484034,1761555744047,-212.045207,0.00015189,2]
[392484035,1761555744072,-1602.71,0.00015189,2]
[392484036,1761555744096,-1602.71,0.00015189,2]
[392484037,1761555744123,-212.045207,0.00015189,2]
[392484038,1761555744148,-1602.71,0.00015189,2]
[392484039,1761555744176,-1602.71,0.00015189,2]
[392484040,1761555744204,-1602.71,0.00015189,2]
[392484041,1761555744228,-1602.71,0.00015189,2]
[392484042,1761555744253,-1602.71,0.00015189,2]
[392484043,1761555744277,-1602.71,0.00015189,2]
[392484044,1761555744301,-1602.71,0.00015189,2]
[392484045,1761555744325,-1602.71,0.00015189,2]
[392484046,1761555744348,-1602.71,0.00015189,2]
[392484047,1761555744371,-1602.71,0.00015189,2]
[392484048,1761555744394,-1602.71,0.00015189,2]
[392484049,1761555744417,-151.0,0.00015189,2]
[392484050,1761555744447,-151.0,0.00015189,2]
[392484051,1761555744475,-151.0,0.00015189,2]
[392484052,1761555744501,-151.0,0.00015189,2]
[392484053,1761555744524,-151.0,0.0001519,2]
[392484054,1761555744548,-212.045207,0.0001519,2]
[392484055,1761555744571,-212.045207,0.0001519,2]
[392484056,1761555744594,-212.045207,0.0001519,2]
[392484057,1761555744616,-212.045207,0.0001519,2]
[392484058,1761555744638,-151.0,0.0001519,2]
[392484059,1761555744661,-151.0,0.0001519,2]
[392484060,1761555744686,-4540.03037499,0.0001519,2]
[392484082,1761556028218,2035.42208159,0.00014976,2]
[392484087,1761556098531,57378.72038199,0.0001509,2]
[392484126,1761556165750,-155.42358421,0.0001501,2]
[392484278,1761556225698,-262.57680743,0.0001501,2]
[392484279,1761556225721,-68.67466456,0.0001501,2]
[392484340,1761556232120,-541.6364272,0.0001501,2]
[392484343,1761556232138,-202.60435592,0.0001501,2]
[392484345,1761556232152,-300.0,0.00015089,2]
[392484348,1761556232169,-733.67847759,0.00015089,2]
[392484350,1761556232185,-466.32152241,0.00015089,2]
[392484353,1761556232199,-270.0,0.00015089,2]
[392484355,1761556232212,-204.91518367,0.00015089,2]
[392484499,1761556235916,331.25147199,0.00014938,2]
[392484526,1761556238128,-54.47216039,0.00015089,2]
[392484528,1761556238139,-297.00210612,0.00015089,2]
[392484530,1761556238150,-4311.29809857,0.0001509,2]
[392484534,1761556238182,-1469.03890144,0.0001509,2]
[392484536,1761556238196,-638.33157139,0.0001509,2]
[392484538,1761556238209,-469.13541551,0.0001509,2]
[392484541,1761556238221,-380.89502363,0.0001509,2]
[392484543,1761556238233,-717.12731951,0.0001509,2]
[392484545,1761556238246,-1214.53890209,0.0001509,2]
[392484601,1761556240764,-666.34338392,0.0001509,2]
[392484603,1761556240775,-2215.35607421,0.0001509,2]
[392484608,1761556240820,-2905.63745514,0.0001509,2]
[392484676,1761556243029,-10900.6569906,0.0001509,2]
[392484677,1761556243082,-418.93857618,0.0001509,2]
[392484678,1761556243093,-257.97693539,0.0001509,2]
[392484679,1761556243104,-1149.2,0.0001509,2]
[392484680,1761556243116,-23865.43319463,0.0001509,2]
[392484681,1761556243656,766.52,0.0001508,3]
[392484690,1761556245959,-7446.18959536,0.0001509,2]
[392484691,1761556245970,-40430.42926697,0.0001509,2]
[392484693,1761556276692,300.0,0.00015,2]
[392484694,1761556287844,300.0,0.00015,2]
[392484695,1761556299029,300.0,0.00015,2]
[392484696,1761556310478,300.0,0.00015,2]
[392484717,1761556408448,804.47586646,0.00015,2]
[392484718,1761556436072,999.0,0.00014102,2]
[392484720,1761556454989,266.611132,0.00014102,2]
[392484739,1761556477962,-1200.0,0.00015088,2]
[392484740,1761556478016,-300.0,0.00015088,2]
[392484745,1761556497947,1588.92391825,0.00015,2]
[392484746,1761556501549,300.0,0.00015088,2]
[392484747,1761556502017,300.0,0.00015088,2]
[392484758,1761556502363,300.0,0.00015088,2]
[392484796,1761556503388,300.0,0.00015088,2]
[392484880,1761556506011,1200.0,0.00015088,2]
[392484887,1761556506199,300.0,0.00015088,2]
[392484971,1761556508688,2035.42208159,0.00014862,2]